bitfinex/quotes_BTCUSD_20240611
["timestamp","ask_amount","ask_price","bid_price","bid_amount"]
[1718098441944,0.00943801,67350.0,67349.0,0.76205786]
[1718098442153,0.00943801,67350.0,67349.0,0.63173213]
[1718098442358,0.00943801,67350.0,67349.0,0.51228]
[1718098442589,0.00943801,67350.0,67349.0,0.50728]
[1718098442804,0.00943801,67350.0,67349.0,0.51228]
[1718098443015,0.00943801,67350.0,67349.0,0.50628]
[1718098443181,0.00943801,67350.0,67349.0,0.51128]
[1718098443387,0.00943801,67350.0,67349.0,0.557408]
[1718098443738,0.00943801,67350.0,67349.0,0.562408]
[1718098444554,0.00943801,67350.0,67349.0,1.27692793]
[1718098444805,0.00943801,67350.0,67349.0,1.09992793]
[1718098445020,0.00943801,67350.0,67349.0,1.59688793]
[1718098445252,0.00943801,67350.0,67349.0,1.72422331]
[1718098445467,0.00943801,67350.0,67349.0,1.52422304]
[1718098445648,0.00943801,67350.0,67349.0,1.42422304]
[1718098445891,0.00943801,67350.0,67349.0,1.29688793]
[1718098446124,0.00943801,67350.0,67349.0,1.28688793]
[1718098446563,0.00943801,67350.0,67349.0,1.49188793]
[1718098446781,0.00943801,67350.0,67349.0,1.59188793]
[1718098447065,0.00943801,67350.0,67349.0,1.89484793]
[1718098447273,0.00943801,67350.0,67349.0,2.22053403]
[1718098447486,0.00943801,67350.0,67349.0,2.37448103]
[1718098449191,0.00943801,67350.0,67349.0,2.37439577]
[1718098449406,1e-08,67350.0,67349.0,2.67135577]
[1718098449618,0.000946,67355.0,67354.0,1.162345]
[1718098449826,0.000946,67355.0,67354.0,1.8901557]
[1718098450255,0.000946,67355.0,67354.0,2.2945087]
[1718098451053,0.000946,67355.0,67354.0,2.5914467]
[1718098451308,0.000946,67355.0,67354.0,2.3782837]
[1718098451517,0.000946,67355.0,67354.0,2.44604086]
[1718098451696,0.000946,67355.0,67354.0,2.45104086]
[1718098452197,0.000946,67355.0,67354.0,2.33669486]
[1718098452429,0.000946,67355.0,67354.0,2.56833386]
[1718098452865,0.000946,67355.0,67354.0,1.17549893]
[1718098453075,0.000946,67355.0,67354.0,0.91029893]
[1718098453294,0.000946,67355.0,67354.0,1.14961886]
[1718098453772,0.000946,67355.0,67354.0,0.37266093]
[1718098453988,0.000946,67355.0,67354.0,0.36766093]
[1718098455055,0.000946,67355.0,67354.0,0.36266093]
[1718098455276,0.00074908,67385.0,67383.0,0.565215]
[1718098455493,0.00074908,67385.0,67384.0,0.565209]
[1718098455701,0.00074908,67385.0,67384.0,0.291403]
[1718098455947,0.00074908,67385.0,67384.0,0.268403]
[1718098456994,0.00074908,67385.0,67384.0,0.258403]
[1718098457208,0.00074908,67385.0,67384.0,0.153403]
[1718098457427,0.00074908,67385.0,67384.0,0.1848561]
[1718098457652,0.00074908,67385.0,67384.0,0.1948561]
[1718098458286,0.00074908,67385.0,67384.0,0.1998561]
[1718098458498,0.00074908,67385.0,67384.0,0.1898561]
[1718098458722,0.00074908,67385.0,67384.0,0.83548203]
[1718098458923,0.00074908,67385.0,67384.0,0.84548203]
[1718098459554,0.00074908,67385.0,67384.0,0.84048203]
[1718098460022,0.00074908,67385.0,67384.0,0.84548203]
[1718098460247,0.00074908,67385.0,67384.0,1.04048203]
[1718098460470,0.00074908,67385.0,67384.0,1.30228203]
[1718098460678,0.00074908,67385.0,67384.0,1.57248203]
[1718098460887,0.00074908,67385.0,67384.0,1.86928803]
[1718098461312,0.00074908,67385.0,67384.0,1.96928803]
[1718098461551,0.00074908,67385.0,67384.0,1.96428803]
[1718098461770,0.00074908,67385.0,67384.0,1.97428803]
[1718098461971,0.00074908,67385.0,67384.0,2.0512166]
[1718098462179,0.00074908,67385.0,67384.0,2.1130959]
[1718098462449,0.00074908,67385.0,67384.0,2.1180959]
[1718098462677,0.00074908,67385.0,67384.0,1.8262899]
[1718098462899,0.00074908,67385.0,67384.0,1.8212899]
[1718098463132,0.00074908,67385.0,67384.0,2.1230959]
[1718098463368,0.00074908,67385.0,67384.0,2.1180959]
[1718098463820,0.00074908,67385.0,67384.0,2.08057546]
[1718098464033,0.00074908,67385.0,67384.0,2.0412166]
[1718098464860,0.00074908,67385.0,67384.0,1.9462166]
[1718098465067,0.00074908,67385.0,67384.0,1.1061106]
[1718098465277,0.00074908,67385.0,67384.0,0.8359106]
[1718098465504,0.00074908,67385.0,67384.0,0.9359106]
[1718098465727,0.00074908,67385.0,67384.0,0.8359106]
[1718098465936,0.00074908,67385.0,67384.0,0.8129106]
[1718098466194,0.00074908,67385.0,67384.0,0.36178467]
[1718098466432,0.16034908,67385.0,67384.0,0.23033157]
[1718098466708,0.16034908,67385.0,67384.0,0.08192857]
[1718098466947,0.16034908,67385.0,67384.0,0.005]
[1718098467180,0.16034908,67385.0,67384.0,0.01]
[1718098467876,0.16034908,67385.0,67384.0,0.0258409]
[1718098468560,0.16034908,67385.0,67384.0,0.0158409]
[1718098468793,0.16034908,67385.0,67384.0,0.0208409]
[1718098469463,0.00074908,67385.0,67384.0,0.0408409]
[1718098469667,0.00074908,67385.0,67384.0,0.1742439]
[1718098469879,0.00074908,67385.0,67384.0,0.1792439]
[1718098470111,0.00074908,67385.0,67384.0,0.51846383]
[1718098470333,0.00074908,67385.0,67384.0,0.59541053]
[1718098470566,0.00074908,67385.0,67384.0,0.2661906]
[1718098470811,0.00074908,67385.0,67384.0,0.2561906]
[1718098471034,0.00074908,67385.0,67384.0,0.2461906]
[1718098471250,0.00074908,67385.0,67384.0,0.2411906]
[1718098471432,0.00074908,67385.0,67384.0,0.2511906]
[1718098471681,0.00074908,67385.0,67384.0,0.1692439]
[1718098472153,0.00074908,67385.0,67384.0,0.1742439]
[1718098475585,0.00074908,67385.0,67384.0,0.1842439]
[1718098475853,0.00074908,67385.0,67384.0,0.1942439]
[1718098476094,0.00074908,67385.0,67384.0,0.36156383]
[1718098476328,0.00074908,67385.0,67384.0,1.16422979]
[1718098476836,0.00074908,67385.0,67384.0,1.09206983]
[1718098477050,0.00074908,67385.0,67384.0,1.08706983]
[1718098477782,0.00074908,67385.0,67384.0,1.08206983]
[1718098478165,0.00074908,67385.0,67384.0,0.98206983]
[1718098478399,0.00074908,67385.0,67384.0,1.08206983]
[1718098478603,0.00074908,67385.0,67384.0,1.09206983]
[1718098479262,0.00074908,67385.0,67384.0,1.11418211]
[1718098479474,0.00074908,67385.0,67384.0,1.11918211]
[1718098479744,0.00074908,67385.0,67384.0,1.31918211]
[1718098479906,0.00074908,67385.0,67384.0,1.11918211]
[1718098481457,0.00074908,67385.0,67384.0,0.44156383]
[1718098481682,0.00074908,67385.0,67384.0,0.2742439]
[1718098483498,0.00074908,67385.0,67384.0,0.2842439]
[1718098484328,0.00074908,67385.0,67384.0,0.1258409]
[1718098484547,0.00074908,67385.0,67384.0,0.0258409]
[1718098484769,0.00074908,67385.0,67384.0,0.1258409]
[1718098485207,0.00767346,67385.0,67384.0,0.1208409]
[1718098485442,0.00074908,67385.0,67384.0,0.1158409]
[1718098485682,0.00767346,67385.0,67384.0,0.1258409]
[1718098485915,0.00074908,67385.0,67384.0,0.2842439]
[1718098486154,0.00767346,67385.0,67384.0,0.2842439]
[1718098486372,0.00074908,67385.0,67384.0,0.2842439]
[1718098486592,0.00767346,67385.0,67384.0,0.2842439]
[1718098486788,0.00074908,67385.0,67384.0,0.2942439]
[1718098486997,0.00766705,67385.0,67384.0,0.2942439]
[1718098487637,0.00766705,67385.0,67384.0,0.2742439]
[1718098489506,0.00766705,67385.0,67384.0,0.2942439]
[1718098489507,0.00074908,67385.0,67384.0,0.2942439]
[1718098489706,0.00074908,67385.0,67384.0,0.2892439]
[1718098489926,0.00074908,67385.0,67384.0,0.2792439]
[1718098490419,0.00074908,67385.0,67384.0,0.2742439]
[1718098490663,0.00766966,67385.0,67384.0,0.2792439]
[1718098490902,0.00766966,67385.0,67384.0,0.2692439]
[1718098491355,0.00074908,67385.0,67384.0,0.2742439]
[1718098491570,0.00766966,67385.0,67384.0,0.2742439]
[1718098491992,0.00766966,67385.0,67384.0,0.1642439]
[1718098492213,0.00766966,67385.0,67379.0,0.148412]
[1718098492465,0.00766966,67385.0,67371.0,0.30871324]
[1718098492466,0.0773,67384.0,67375.0,0.148422]
[1718098493082,0.00692058,67383.0,67375.0,0.148422]
[1718098493487,0.00692058,67383.0,67371.0,0.19764324]
[1718098493488,0.1521,67380.0,67371.0,0.19764324]
[1718098493687,0.2294,67380.0,67372.0,0.01976432]
[1718098493904,0.00678421,67379.0,67372.0,0.01976432]
[1718098495432,0.00678421,67379.0,67372.0,0.02976432]
[1718098495636,0.00678421,67379.0,67372.0,0.02476432]
[1718098496296,0.00678421,67379.0,67372.0,0.01976432]
[1718098496513,0.00678421,67379.0,67373.0,0.03174126]
[1718098496724,0.0799,67377.0,67372.0,0.005]
[1718098497156,0.00674152,67376.0,67372.0,0.01]
[1718098497381,0.00674152,67376.0,67372.0,0.005]
[1718098497809,0.00674152,67376.0,67373.0,0.005]
[1718098498019,0.00674152,67376.0,67369.0,0.01]
[1718098498262,0.00674152,67376.0,67373.0,0.005]
[1718098498482,0.00674152,67376.0,67374.0,0.0168432]
[1718098499129,0.00674152,67376.0,67375.0,0.148423]
[1718098499324,0.0771,67382.0,67375.0,0.148423]
[1718098499539,0.00674152,67376.0,67375.0,0.148423]
[1718098499748,0.0771,67382.0,67375.0,0.148423]
[1718098499958,0.00674152,67381.0,67374.0,0.005]
[1718098500188,0.00674152,67381.0,67375.0,0.0158433]
[1718098500843,0.148419,67377.0,67375.0,0.0158433]
[1718098501063,0.148419,67377.0,67374.0,0.01]
[1718098501272,0.148419,67377.0,67374.0,0.005]
[1718098501273,0.00675582,67376.0,67374.0,0.005]
[1718098501706,0.00675582,67376.0,67375.0,0.005]
[1718098502353,0.00675582,67376.0,67364.0,0.148447]
[1718098502566,0.00675582,67376.0,67365.0,0.03078112]
[1718098502800,0.00675582,67376.0,67374.0,0.005]
[1718098503241,0.00675582,67376.0,67365.0,0.03078112]
[1718098503469,0.00675582,67376.0,67374.0,0.005]
[1718098503683,0.00675582,67376.0,67365.0,0.03078112]
[1718098503891,0.00675582,67376.0,67366.0,0.03435924]
[1718098504097,0.00675582,67376.0,67374.0,0.005]
[1718098505848,0.148423,67375.0,67374.0,0.005]
[1718098505997,0.1550363,67375.0,67374.0,0.005]
[1718098506412,0.1550363,67375.0,67374.0,0.01]
[1718098507047,0.1550363,67375.0,67363.0,0.04936423]
[1718098507253,0.1550363,67375.0,67364.0,0.02978192]
[1718098507460,0.1550363,67375.0,67374.0,0.005]
[1718098508353,0.1550363,67375.0,67364.0,0.02978192]
[1718098508597,0.1550363,67375.0,67374.0,0.005]
[1718098509053,0.1550363,67375.0,67364.0,0.02978192]
[1718098509259,0.1550363,67375.0,67365.0,0.03276012]
[1718098509466,0.1550363,67375.0,67374.0,0.005]
[1718098509671,0.1550363,67375.0,67374.0,0.01]
[1718098509867,0.1550363,67375.0,67365.0,0.03276012]
[1718098510912,0.1550363,67375.0,67374.0,0.005]
[1718098511121,0.1550363,67375.0,67365.0,0.03276012]
[1718098511319,0.1550363,67375.0,67366.0,0.03455763]
[1718098511748,0.2307,67374.0,67366.0,0.03455763]
[1718098512190,0.0066133,67373.0,67366.0,0.03455763]
[1718098513257,0.0066133,67373.0,67366.0,0.04455763]
[1718098513673,0.0827,67379.0,67366.0,0.04955763]
[1718098513916,0.0066133,67372.0,67367.0,0.02573659]
[1718098514115,0.0827,67379.0,67367.0,0.02573659]
[1718098514526,0.0066133,67378.0,67367.0,0.02573659]
[1718098515367,0.0066133,67378.0,67365.0,0.148444]
[1718098515368,0.0066133,67378.0,67361.0,0.1]
[1718098515369,0.0066133,67378.0,67341.0,0.04432826]
[1718098515370,0.6,67342.0,67341.0,0.04432826]
[1718098515594,0.6,67342.0,67329.0,0.1329848]
[1718098515595,0.158531,67326.0,67322.0,0.04432826]
[1718098515818,0.158531,67326.0,67319.0,0.04432826]
[1718098516025,0.1702,67322.0,67307.0,0.00856]
[1718098516296,0.00654295,67321.0,67307.0,0.00856]
[1718098516518,0.1602,67322.0,67307.0,0.00856]
[1718098516755,0.00653706,67320.0,67307.0,0.00856]
[1718098517002,0.00653706,67319.0,67307.0,0.00856]
[1718098517244,0.1602,67322.0,67308.0,0.01]
[1718098517534,0.01,67318.0,67316.0,0.01356]
[1718098517704,0.01,67319.0,67316.0,0.00856]
[1718098517928,0.1702,67322.0,67316.0,0.01256]
[1718098518201,0.1702,67322.0,67316.0,0.01056]
[1718098518202,0.01,67317.0,67316.0,0.01056]
[1718098518438,0.15855,67317.0,67316.0,0.01056]
[1718098519177,0.15855,67317.0,67316.0,0.00856]
[1718098519617,0.15855,67317.0,67316.0,0.01856]
[1718098519831,0.15855,67317.0,67316.0,0.01356]
[1718098520067,0.15855,67317.0,67316.0,0.00856]
[1718098520068,0.30286993,67317.0,67316.0,0.00856]
[1718098520283,0.55706993,67317.0,67316.0,0.00856]
[1718098520697,0.54706993,67317.0,67316.0,0.00856]
[1718098522632,0.54706993,67317.0,67316.0,0.00956]
[1718098523094,0.01,67328.0,67316.0,0.00956]
[1718098523095,0.148539,67323.0,67316.0,0.00956]
[1718098523325,0.148539,67323.0,67317.0,0.021042]
[1718098523326,0.15431993,67322.0,67317.0,0.021042]
[1718098523549,0.01,67318.0,67317.0,0.021042]
[1718098523763,0.30285993,67322.0,67317.0,0.021042]
[1718098524030,0.01,67321.0,67317.0,0.021042]
[1718098524275,0.15331993,67321.0,67317.0,0.021042]
[1718098524518,0.15331993,67321.0,67318.0,0.0230462]
[1718098524736,0.14431993,67321.0,67318.0,0.0230462]
[1718098525181,0.15331993,67321.0,67318.0,0.0230462]
[1718098525844,0.009,67319.0,67318.0,0.0230462]
[1718098526072,0.15331993,67321.0,67318.0,0.0230462]
[1718098526312,0.15331993,67321.0,67316.0,0.00856]
[1718098526313,0.009,67320.0,67319.0,0.02324662]
[1718098526755,0.15331993,67320.0,67316.0,0.00856]
[1718098527017,0.009,67317.0,67316.0,0.00856]
[1718098527245,0.30186993,67317.0,67316.0,0.00856]
[1718098527699,0.30169132,67317.0,67316.0,0.00856]
[1718098530372,0.2703,67322.0,67316.0,0.00856]
[1718098530373,0.00882139,67322.0,67316.0,0.00856]
[1718098530585,0.15314132,67322.0,67317.0,0.020942]
[1718098530809,0.00882139,67321.0,67317.0,0.020942]
[1718098531010,0.00882139,67320.0,67317.0,0.020942]
[1718098531862,0.01555031,67319.0,67317.0,0.020942]
[1718098532060,0.01555031,67319.0,67318.0,0.0230362]
[1718098532266,0.0243717,67319.0,67318.0,0.0230362]
[1718098533514,0.0243717,67319.0,67318.0,0.0240362]
[1718098534566,0.0243717,67319.0,67318.0,0.001]
[1718098534773,0.0243717,67319.0,67318.0,0.2402]
[1718098534774,0.02069704,67319.0,67318.0,0.2402]
[1718098535000,0.059422,67322.0,67318.0,0.2402]
[1718098535001,0.148513,67335.0,67321.0,0.01]
[1718098535221,0.04948516,67336.0,67326.0,0.07215996]
[1718098535222,0.31353037,67334.0,67326.0,0.07215996]
[1718098535431,0.15733639,67333.0,67320.0,0.1982745]
[1718098535641,0.148515,67333.0,67320.0,0.1982745]
[1718098535865,0.148515,67333.0,67320.0,0.2082745]
[1718098535866,0.02069744,67332.0,67320.0,0.2082745]
[1718098536081,0.02069744,67332.0,67321.0,0.06281945]
[1718098536287,0.02951883,67332.0,67321.0,0.06781945]
[1718098537194,0.02069744,67332.0,67321.0,0.06781945]
[1718098537641,0.00882139,67331.0,67321.0,0.06781945]
[1718098537855,0.148515,67333.0,67321.0,0.07281945]
[1718098538063,0.02069744,67330.0,67322.0,0.06377234]
[1718098538273,0.148515,67333.0,67322.0,0.06377234]
[1718098538503,0.02069744,67332.0,67322.0,0.06377234]
[1718098538803,0.02069744,67332.0,67322.0,0.21231034]
[1718098539261,0.02069744,67331.0,67322.0,0.21231034]
[1718098539470,0.02069744,67331.0,67328.0,0.158524]
[1718098540370,0.04962447,67340.0,67328.0,0.158524]
[1718098540589,0.04962447,67340.0,67328.0,0.148524]
[1718098540809,0.02069744,67339.0,67328.0,0.148524]
[1718098541255,0.02069744,67339.0,67328.0,0.153524]
[1718098541466,0.02069744,67339.0,67329.0,0.0317824]
[1718098541885,0.00882139,67338.0,67329.0,0.0317824]
[1718098542315,0.02103181,67337.0,67329.0,0.0317824]
[1718098542728,0.00882139,67338.0,67329.0,0.0367824]
[1718098542965,0.02103181,67336.0,67329.0,0.0367824]
[1718098543179,0.00882139,67338.0,67330.0,0.01853064]
[1718098543417,0.19809934,67342.0,67330.0,0.01853064]
[1718098543418,0.00882139,67331.0,67330.0,0.01853064]
[1718098543633,0.00882139,67333.0,67329.0,0.0367824]
[1718098543851,0.02103181,67331.0,67329.0,0.01]
[1718098544069,0.00882139,67333.0,67329.0,0.01]
[1718098544301,0.00882139,67333.0,67329.0,0.005]
[1718098544514,0.00882139,67331.0,67329.0,0.005]
[1718098544726,0.00882139,67330.0,67329.0,0.005]
[1718098544939,0.00882139,67331.0,67324.0,0.1543]
[1718098545137,0.02103181,67330.0,67325.0,0.01543]
[1718098546207,0.0298532,67330.0,67329.0,0.005]
[1718098546625,0.0298532,67330.0,67325.0,0.01543]
[1718098547071,0.0298532,67330.0,67325.0,0.02543]
[1718098547279,0.02103181,67330.0,67325.0,0.02543]
[1718098547493,0.0298532,67330.0,67326.0,0.017973]
[1718098548942,0.0298532,67330.0,67326.0,0.022973]
[1718098549352,0.0298532,67330.0,67329.0,0.005]
[1718098549541,0.0298532,67330.0,67326.0,0.017973]
[1718098549776,0.0298532,67330.0,67326.0,0.022973]
[1718098549777,0.00882139,67329.0,67326.0,0.022973]
[1718098549948,0.00882139,67328.0,67327.0,0.0192703]
[1718098550145,0.00882139,67330.0,67327.0,0.0192703]
[1718098550347,0.02103181,67328.0,67327.0,0.0192703]
[1718098550570,0.00882139,67330.0,67327.0,0.0192703]
[1718098550737,0.0298532,67328.0,67327.0,0.0192703]
[1718098550939,0.00882139,67328.0,67327.0,0.0192703]
[1718098551148,0.0298532,67328.0,67327.0,0.0192703]
[1718098551358,0.00882139,67328.0,67327.0,0.0242703]
[1718098551564,0.0298532,67328.0,67327.0,0.0242703]
[1718098551784,0.00882139,67328.0,67327.0,0.0242703]
[1718098551984,0.00882139,67328.0,67327.0,0.005]
[1718098552188,0.1783792,67328.0,67327.0,0.005]
[1718098552601,0.1783792,67328.0,67317.0,0.2647]
[1718098552602,0.00882139,67321.0,67317.0,0.1647]
[1718098552814,0.00882139,67319.0,67318.0,0.12673127]
[1718098553015,0.00882139,67319.0,67317.0,0.12673272]
[1718098553221,0.00882139,67319.0,67318.0,0.01475389]
[1718098553427,0.00882139,67319.0,67316.0,0.00856]
[1718098553660,0.00882139,67318.0,67316.0,0.00856]
[1718098553867,0.02967974,67317.0,67316.0,0.00856]
[1718098554377,0.02085835,67317.0,67316.0,0.00856]
[1718098554777,0.00882139,67322.0,67316.0,0.00856]
[1718098554981,0.00882139,67321.0,67317.0,0.00929661]
[1718098555182,0.02967974,67321.0,67316.0,0.00856]
[1718098555417,0.02085835,67320.0,67316.0,0.00856]
[1718098555854,0.02085835,67320.0,67316.0,0.01356]
[1718098556059,0.02967974,67320.0,67316.0,0.01356]
[1718098556521,0.02085835,67320.0,67316.0,0.01856]
[1718098556684,0.02967974,67320.0,67317.0,0.01793651]
[1718098556858,0.02085835,67320.0,67317.0,0.01793651]
[1718098557077,0.00882139,67318.0,67317.0,0.01793651]
[1718098558307,0.00882139,67320.0,67317.0,0.01793651]
[1718098558801,0.01738196,67319.0,67317.0,0.02293651]
[1718098559207,0.01738196,67319.0,67318.0,0.1551]
[1718098559433,0.148533,67325.0,67318.0,0.18320427]
[1718098559434,0.00882139,67322.0,67318.0,0.18320427]
[1718098559638,0.01738196,67321.0,67318.0,0.18320427]
[1718098560147,0.02620335,67321.0,67318.0,0.02810427]
[1718098560342,0.00882139,67320.0,67318.0,0.02810427]
[1718098560570,0.00882139,67319.0,67318.0,0.03310427]
[1718098560741,0.00882139,67319.0,67318.0,0.02810427]
[1718098560924,0.02620335,67319.0,67318.0,0.02810427]
[1718098561126,0.00882139,67319.0,67318.0,0.02810427]
[1718098561340,0.02619787,67319.0,67318.0,0.02810427]
[1718098561550,0.00882139,67319.0,67318.0,0.02810427]
[1718098561758,0.02619787,67319.0,67318.0,0.02810427]
[1718098562213,0.02619787,67319.0,67318.0,0.03310427]
[1718098562422,0.02619787,67319.0,67318.0,0.02810427]
[1718098562846,0.01737648,67319.0,67318.0,0.03310427]
[1718098563066,0.00882139,67320.0,67318.0,0.03310427]
[1718098563282,0.02619592,67319.0,67318.0,0.03310427]
[1718098564074,0.01737453,67319.0,67318.0,0.03810427]
[1718098564283,0.00882139,67321.0,67318.0,0.03810427]
[1718098564490,0.00882139,67321.0,67318.0,0.03310427]
[1718098564491,0.01737453,67320.0,67318.0,0.03310427]
[1718098565103,0.00882139,67319.0,67318.0,0.03310427]
[1718098565367,0.00882139,67319.0,67318.0,0.02810427]
[1718098565575,0.02619592,67319.0,67318.0,0.02810427]
[1718098565806,0.00882139,67319.0,67318.0,0.03810427]
[1718098566015,0.02619592,67319.0,67318.0,0.03310427]
[1718098566239,0.38228732,67319.0,67318.0,0.00586]
[1718098566477,0.39966185,67319.0,67318.0,0.00586]
[1718098566688,0.39966185,67319.0,67318.0,0.00086]
[1718098566689,0.40966185,67319.0,67318.0,0.00086]
[1718098567110,0.40966185,67319.0,67318.0,0.00586]
[1718098567314,0.70675385,67319.0,67318.0,0.00586]
[1718098567547,0.85865385,67319.0,67318.0,0.00586]
[1718098568865,0.85865385,67319.0,67318.0,0.00186]
[1718098569079,0.85865385,67319.0,67318.0,0.00086]
[1718098569303,0.85865385,67319.0,67318.0,0.00186]
[1718098569304,1.15574585,67319.0,67318.0,0.00186]
[1718098569552,0.85865385,67319.0,67318.0,0.00286]
[1718098569775,0.85865385,67319.0,67318.0,0.00086]
[1718098569776,1.15574585,67319.0,67318.0,0.00086]
[1718098569996,0.85865385,67319.0,67318.0,0.00186]
[1718098570224,0.85865385,67319.0,67318.0,0.00286]
[1718098570456,0.85865385,67319.0,67318.0,0.00186]
[1718098570696,0.85865385,67319.0,67318.0,0.00086]
[1718098572034,0.85865385,67319.0,67318.0,0.00186]
[1718098572261,2.00006578,67319.0,67318.0,0.00186]
[1718098572489,1.70297378,67319.0,67318.0,0.00186]
[1718098572736,2.82909152,67319.0,67318.0,0.00186]
[1718098572927,1.70297378,67319.0,67318.0,0.00086]
[1718098573136,1.45865385,67319.0,67318.0,0.00186]
[1718098573347,1.44865385,67319.0,67318.0,0.00286]
[1718098573564,1.67475385,67319.0,67318.0,0.00086]
[1718098573997,1.67475385,67319.0,67318.0,0.00186]
[1718098574215,1.66475385,67319.0,67318.0,0.00186]
[1718098574429,0.39270299,67319.0,67318.0,0.00186]
[1718098574703,0.31210299,67319.0,67318.0,0.00186]
[1718098574909,0.31731082,67319.0,67318.0,0.00186]
[1718098575769,0.31731082,67319.0,67318.0,0.00086]
[1718098576196,0.31731082,67319.0,67318.0,0.00286]
[1718098576407,0.31731082,67319.0,67318.0,0.00186]
[1718098576862,0.31731082,67319.0,67318.0,0.00086]
[1718098577055,0.31096837,67319.0,67318.0,0.00086]
[1718098577308,0.30214698,67319.0,67318.0,0.00086]
[1718098577524,0.15360098,67319.0,67318.0,0.00086]
[1718098577741,0.16242237,67319.0,67318.0,0.00086]
[1718098577954,0.15973944,67319.0,67318.0,0.00086]
[1718098578587,0.16856083,67319.0,67318.0,0.00086]
[1718098579016,0.15973944,67319.0,67318.0,0.00086]
[1718098579462,0.16856083,67319.0,67318.0,0.00086]
[1718098580713,0.15973944,67319.0,67318.0,0.00086]
[1718098581508,0.16856083,67319.0,67318.0,0.00086]
[1718098582449,0.31710683,67319.0,67318.0,0.00086]
[1718098583405,0.47380683,67319.0,67318.0,0.00086]
[1718098584471,0.78089883,67319.0,67318.0,0.00086]
[1718098586009,0.77089883,67319.0,67318.0,0.00086]
[1718098587279,0.86169883,67319.0,67318.0,0.00086]
[1718098587890,0.96891469,67319.0,67318.0,0.00086]
[1718098588484,0.86169883,67319.0,67318.0,0.00086]
[1718098588696,0.87025883,67319.0,67318.0,0.00086]
[1718098588915,0.87025883,67319.0,67318.0,0.00186]
[1718098589342,0.87325883,67319.0,67318.0,0.00186]
[1718098589795,0.86025883,67319.0,67318.0,0.00186]
[1718098589975,0.87325883,67319.0,67318.0,0.00286]
[1718098595196,1.18146522,67319.0,67318.0,0.00286]
[1718098595403,1.18146522,67319.0,67318.0,0.00186]
[1718098595703,0.97874743,67319.0,67318.0,0.00286]
[1718098596152,1.28395264,67319.0,67318.0,0.00186]
[1718098596627,1.28695264,67319.0,67318.0,0.00286]
[1718098597306,1.32802738,67319.0,67318.0,0.00186]
[1718098597726,2.1685203,67319.0,67318.0,0.00286]
[1718098597956,2.5536537,67319.0,67318.0,0.00286]
[1718098598167,2.5697537,67319.0,67318.0,0.00286]
[1718098598378,2.88002188,67319.0,67318.0,0.00286]
[1718098598590,2.87802188,67319.0,67318.0,0.00186]
[1718098598821,3.22136781,67319.0,67318.0,0.00186]
[1718098599031,3.24336781,67319.0,67318.0,0.00186]
[1718098599263,3.04336781,67319.0,67318.0,0.00186]
[1718098599488,3.24436781,67319.0,67318.0,0.00186]
[1718098600001,3.24436781,67319.0,67318.0,0.00286]
[1718098600002,3.24731381,67319.0,67318.0,0.00286]
[1718098600211,2.9361086,67319.0,67318.0,0.00186]
[1718098600434,3.24235568,67319.0,67318.0,0.00086]
[1718098601491,3.24318824,67319.0,67318.0,0.00186]
[1718098601922,3.25718824,67319.0,67318.0,0.00286]
[1718098602348,0.31,67315.0,67314.0,0.00086]
[1718098602567,2.65091592,67315.0,67314.0,0.00086]
[1718098602775,2.55592876,67315.0,67314.0,0.00086]
[1718098602992,2.8607788,67315.0,67314.0,0.00086]
[1718098603851,2.8747788,67315.0,67314.0,0.00086]
[1718098604048,2.8887788,67315.0,67314.0,0.00086]
[1718098604260,2.6887788,67315.0,67314.0,0.00086]
[1718098604473,1.84384887,67315.0,67314.0,0.00086]
[1718098604694,2.10423987,67315.0,67314.0,0.00086]
[1718098604920,1.73093617,67315.0,67314.0,0.00086]
[1718098605159,1.65081862,67315.0,67314.0,0.00086]
[1718098605373,0.77212472,67315.0,67314.0,0.00086]
[1718098605584,0.78612472,67315.0,67314.0,0.00186]
[1718098605789,0.74204038,67315.0,67314.0,0.00186]
[1718098606009,0.34493038,67315.0,67314.0,0.00186]
[1718098606222,0.32625912,67315.0,67314.0,0.00186]
[1718098606450,0.34025912,67315.0,67314.0,0.00286]
[1718098606664,0.41745912,67315.0,67314.0,0.00186]
[1718098606875,0.88672908,67315.0,67314.0,0.00186]
[1718098607079,0.84256912,67315.0,67314.0,0.00386]
[1718098607308,0.87665346,67315.0,67314.0,0.00386]
[1718098607754,1.02787573,67315.0,67314.0,0.00386]
[1718098607955,0.99987573,67315.0,67314.0,0.00186]
[1718098608169,1.16257573,67315.0,67314.0,0.00186]
[1718098608367,1.00735346,67315.0,67314.0,0.00086]
[1718098608579,0.96326912,67315.0,67314.0,0.00086]
[1718098608803,0.99126912,67315.0,67314.0,0.00286]
[1718098609018,1.03535038,67315.0,67314.0,0.00286]
[1718098609216,0.97726912,67315.0,67314.0,0.00186]
[1718098609644,0.99026912,67315.0,67314.0,0.00286]
[1718098609843,1.09026912,67315.0,67314.0,0.00286]
[1718098610063,1.37437912,67315.0,67314.0,0.00186]
[1718098610269,1.90665051,67315.0,67314.0,0.00186]
[1718098610915,1.89265051,67315.0,67314.0,0.00086]
[1718098611311,2.40722917,67315.0,67314.0,0.00186]
[1718098611531,2.43022917,67315.0,67314.0,0.00186]
[1718098611738,2.06991248,67315.0,67314.0,0.00186]
[1718098611949,2.56702248,67315.0,67314.0,0.00186]
[1718098612155,2.58102248,67315.0,67314.0,0.00286]
[1718098612583,2.56702248,67315.0,67314.0,0.00186]
[1718098612791,2.36702248,67315.0,67314.0,0.00186]
[1718098612997,2.38102248,67315.0,67314.0,0.00286]
[1718098615392,2.30910378,67315.0,67314.0,0.00286]
[1718098616453,1.18148378,67315.0,67314.0,0.00286]
[1718098616666,1.39758378,67315.0,67314.0,0.16146]
[1718098616892,0.65635912,67315.0,67314.0,0.16146]
[1718098617329,0.65635912,67315.0,67314.0,0.00286]
[1718098617544,1.08015144,67315.0,67314.0,0.00286]
[1718098617765,1.49201134,67315.0,67314.0,0.00286]
[1718098617978,2.11834847,67315.0,67314.0,0.00286]
[1718098618187,2.36556698,67315.0,67314.0,0.00286]
[1718098618399,2.27734847,67315.0,67314.0,0.00286]
[1718098618633,2.27735344,67315.0,67314.0,0.00286]
[1718098618825,2.27720309,67315.0,67314.0,0.00286]
[1718098619029,2.26052077,67315.0,67314.0,0.00286]
[1718098619243,2.05162053,67315.0,67314.0,0.00286]
[1718098619889,2.05162648,67315.0,67314.0,0.00286]
[1718098620313,2.34873672,67315.0,67314.0,0.00286]
[1718098620521,3.00673672,67315.0,67314.0,0.00286]